[Event "Chessable Masters - Torneo preliminare"]
[White "Vasquez Schroeder, Rodrigo"]
[Black "Mamedyarov, Shakhriyar"]
[WhiteFideId "3400042"]
[BlackFideId "13401319"]
[WhiteElo "2589"]
[BlackElo "2703"]
[Result "1-0"]
[Round "1"]
[TimeControl "600+2"]
[Date "2023.03.13"]
[WhiteClock "0:03:12"]
[BlackClock "0:00:06"]

1. d4 {[%clk 0:09:58]}  Nf6 {[%clk 0:09:54]} 2. c4 {[%clk 0:09:52]}  e6 {[%clk 0:09:52]} 3. Nf3 {[%clk 0:09:53]}  Bb4+ {[%clk 0:09:46]} 4. Bd2 {[%clk 0:09:53]}  c5 {[%clk 0:09:46]} 5. Bxb4 {[%clk 0:09:53]}  cxb4 {[%clk 0:09:47]} 6. a3 {[%clk 0:09:51]}  bxa3 {[%clk 0:09:41]} 7. Rxa3 {[%clk 0:09:52]}  b6 {[%clk 0:09:39]} 8. Nc3 {[%clk 0:09:51]}  d5 {[%clk 0:09:03]} 9. e3 {[%clk 0:09:37]}  O-O {[%clk 0:08:50]} 10. Be2 {[%clk 0:09:12]}  dxc4 {[%clk 0:08:33]} 11. Bxc4 {[%clk 0:09:13]}  Bb7 {[%clk 0:08:34]} 12. O-O {[%clk 0:09:13]}  a6 {[%clk 0:07:25]} 13. Bd3 {[%clk 0:09:05]}  b5 {[%clk 0:07:21]} 14. Ra1 {[%clk 0:09:02]}  Nbd7 {[%clk 0:07:20]} 15. Qe2 {[%clk 0:08:56]}  Qb6 {[%clk 0:06:31]} 16. e4 {[%clk 0:08:45]}  Rfd8 {[%clk 0:06:06]} 17. Rfd1 {[%clk 0:08:09]}  Nf8 {[%clk 0:05:42]} 18. h3 {[%clk 0:08:06]}  Rac8 {[%clk 0:05:38]} 19. Qe3 {[%clk 0:08:02]}  Ng6 {[%clk 0:05:32]} 20. Rac1 {[%clk 0:07:51]}  e5 {[%clk 0:04:51]} 21. d5 {[%clk 0:07:37]}  Qxe3 {[%clk 0:04:50]} 22. fxe3 {[%clk 0:07:38]}  Nd7 {[%clk 0:04:41]} 23. b4 {[%clk 0:07:32]}  f6 {[%clk 0:04:37]} 24. Nd2 {[%clk 0:07:29]}  Nh8 {[%clk 0:04:28]} 25. Nb3 {[%clk 0:07:29]}  Nf7 {[%clk 0:04:28]} 26. Na5 {[%clk 0:07:18]}  Ba8 {[%clk 0:04:28]} 27. g4 {[%clk 0:06:56]}  Nd6 {[%clk 0:04:04]} 28. Nb1 {[%clk 0:06:54]}  Nb6 {[%clk 0:03:46]} 29. Nd2 {[%clk 0:06:54]}  Na4 {[%clk 0:03:47]} 30. Nab3 {[%clk 0:06:38]}  Nb2 {[%clk 0:03:46]} 31. Nc5 {[%clk 0:06:21]}  Nxd1 {[%clk 0:03:24]} 32. Rxd1 {[%clk 0:06:20]}  a5 {[%clk 0:03:25]} 33. Ne6 {[%clk 0:06:08]}  axb4 {[%clk 0:03:19]} 34. Nxd8 {[%clk 0:06:08]}  Rxd8 {[%clk 0:03:20]} 35. Rb1 {[%clk 0:06:09]}  Rb8 {[%clk 0:02:37]} 36. Rxb4 {[%clk 0:06:10]}  Bb7 {[%clk 0:02:39]} 37. Nb1 {[%clk 0:05:59]}  Bc8 {[%clk 0:02:38]} 38. Nc3 {[%clk 0:05:56]}  Bd7 {[%clk 0:02:40]} 39. Kf2 {[%clk 0:05:57]}  Rc8 {[%clk 0:02:37]} 40. Rb3 {[%clk 0:05:50]}  Rc5 {[%clk 0:02:26]} 41. Kf3 {[%clk 0:05:28]}  Kf7 {[%clk 0:02:26]} 42. Kg3 {[%clk 0:05:26]}  Ke7 {[%clk 0:02:27]} 43. Kf3 {[%clk 0:05:26]}  Kd8 {[%clk 0:02:25]} 44. Ne2 {[%clk 0:05:20]}  Kc7 {[%clk 0:02:24]} 45. Ng3 {[%clk 0:05:21]}  g6 {[%clk 0:02:21]} 46. Ke2 {[%clk 0:05:19]}  Kb6 {[%clk 0:02:17]} 47. Kd2 {[%clk 0:05:19]}  Nc4+ {[%clk 0:02:06]} 48. Bxc4 {[%clk 0:05:14]}  Rxc4 {[%clk 0:02:08]} 49. Kd3 {[%clk 0:05:10]}  Kc5 {[%clk 0:02:06]} 50. Ra3 {[%clk 0:04:52]}  Ra4 {[%clk 0:01:57]} 51. Rc3+ {[%clk 0:04:50]}  Kb6 {[%clk 0:01:57]} 52. Rb3 {[%clk 0:04:32]}  b4 {[%clk 0:01:57]} 53. Rb2 {[%clk 0:04:29]}  Bb5+ {[%clk 0:01:58]} 54. Kd2 {[%clk 0:04:30]}  Kc5 {[%clk 0:01:57]} 55. Nh1 {[%clk 0:04:24]}  Bc4 {[%clk 0:01:38]} 56. Nf2 {[%clk 0:04:24]}  Ra3 {[%clk 0:01:39]} 57. g5 {[%clk 0:04:04]}  f5 {[%clk 0:01:32]} 58. exf5 {[%clk 0:04:01]}  gxf5 {[%clk 0:01:34]} 59. e4 {[%clk 0:04:02]}  Rf3 {[%clk 0:01:29]} 60. Kd1 {[%clk 0:03:57]}  f4 {[%clk 0:00:35]} 61. Ng4 {[%clk 0:03:29]}  Rd3+ {[%clk 0:00:21]} 62. Rd2 {[%clk 0:03:23]}  b3 {[%clk 0:00:21]} 63. Nxe5 {[%clk 0:03:16]}  Rxh3 {[%clk 0:00:11]} 64. Kc1 {[%clk 0:03:09]}  Bb5 {[%clk 0:00:07]} 65. d6 {[%clk 0:03:11]}  Re3 {[%clk 0:00:05]} 66. d7 {[%clk 0:03:12]}  Bxd7 {[%clk 0:00:06]} 67. Nxd7+ {[%clk 0:03:13]}  Kb4 {[%clk 0:00:06]} 68. Kb2 {[%clk 0:03:09]}  Rxe4 {[%clk 0:00:05]} 69. Nf6 {[%clk 0:03:11]}  Re3 {[%clk 0:00:03]} 70. Nd5+ {[%clk 0:03:12]}  Kc4 {[%clk 0:00:03]} 71. Nxe3+ {[%clk 0:03:12]}  fxe3 {[%clk 0:00:05]} 72. Rh2 {[%clk 0:03:12]}  Kc5 {[%clk 0:00:06]} 73. Rxh7 {[%clk 0:03:12]} 1-0


[Site "Internet"]

[Event "Chessable Masters - Torneo preliminare"]
[White "Esipenko, Andrey"]
[Black "Kevlishvili, Robby"]
[WhiteFideId "24175439"]
[BlackFideId "1040634"]
[WhiteElo "2682"]
[BlackElo "2577"]
[Result "0-1"]
[Round "1"]
[TimeControl "600+2"]
[Date "2023.03.13"]
[WhiteClock "0:01:28"]
[BlackClock "0:02:02"]

1. d4 {[%clk 0:10:00]}  d5 {[%clk 0:09:58]} 2. c4 {[%clk 0:09:58]}  c6 {[%clk 0:09:57]} 3. Nf3 {[%clk 0:09:59]}  Nf6 {[%clk 0:09:58]} 4. e3 {[%clk 0:09:58]}  Bf5 {[%clk 0:09:58]} 5. Nc3 {[%clk 0:09:58]}  e6 {[%clk 0:09:57]} 6. Nh4 {[%clk 0:09:59]}  Be4 {[%clk 0:09:58]} 7. f3 {[%clk 0:09:56]}  Bg6 {[%clk 0:09:59]} 8. Bd2 {[%clk 0:09:56]}  Be7 {[%clk 0:09:59]} 9. Nxg6 {[%clk 0:09:55]}  hxg6 {[%clk 0:09:59]} 10. Qb3 {[%clk 0:09:43]}  Qc7 {[%clk 0:10:00]} 11. O-O-O {[%clk 0:09:42]}  dxc4 {[%clk 0:10:00]} 12. Bxc4 {[%clk 0:09:43]}  b5 {[%clk 0:09:59]} 13. Be2 {[%clk 0:09:44]}  a6 {[%clk 0:10:01]} 14. Ne4 {[%clk 0:09:39]}  Nxe4 {[%clk 0:09:59]} 15. fxe4 {[%clk 0:09:40]}  c5 {[%clk 0:10:01]} 16. Kb1 {[%clk 0:09:37]}  Nc6 {[%clk 0:09:40]} 17. Qc2 {[%clk 0:09:34]}  Rc8 {[%clk 0:08:38]} 18. d5 {[%clk 0:09:25]}  exd5 {[%clk 0:08:39]} 19. exd5 {[%clk 0:09:24]}  Ne5 {[%clk 0:08:40]} 20. h4 {[%clk 0:09:22]}  Qd6 {[%clk 0:08:10]} 21. e4 {[%clk 0:08:35]}  Rxh4 {[%clk 0:07:44]} 22. g3 {[%clk 0:08:17]}  Rxh1 {[%clk 0:07:41]} 23. Rxh1 {[%clk 0:08:19]}  Bf6 {[%clk 0:07:39]} 24. g4 {[%clk 0:07:35]}  g5 {[%clk 0:07:35]} 25. Qc1 {[%clk 0:07:34]}  Ng6 {[%clk 0:07:19]} 26. Bxg5 {[%clk 0:07:27]}  Bxg5 {[%clk 0:06:12]} 27. Qxg5 {[%clk 0:07:25]}  Qf4 {[%clk 0:05:25]} 28. Qf5 {[%clk 0:05:36]}  Qxf5 {[%clk 0:05:02]} 29. exf5 {[%clk 0:05:36]}  Nf4 {[%clk 0:04:28]} 30. Bf3 {[%clk 0:05:27]}  Ke7 {[%clk 0:04:28]} 31. g5 {[%clk 0:05:03]}  Kd6 {[%clk 0:03:09]} 32. Rh7 {[%clk 0:04:42]}  Rg8 {[%clk 0:03:10]} 33. Kc1 {[%clk 0:04:15]}  Ke5 {[%clk 0:03:06]} 34. Bg4 {[%clk 0:03:08]}  Kxd5 {[%clk 0:02:54]} 35. Rh1 {[%clk 0:03:03]}  c4 {[%clk 0:02:40]} 36. Kd2 {[%clk 0:03:00]}  Nd3 {[%clk 0:02:40]} 37. Rh7 {[%clk 0:02:48]}  Kd6 {[%clk 0:02:10]} 38. Bh5 {[%clk 0:02:37]}  Ne5 {[%clk 0:02:09]} 39. Bd1 {[%clk 0:02:30]}  g6 {[%clk 0:02:07]} 40. fxg6 {[%clk 0:02:12]}  Rxg6 {[%clk 0:02:05]} 41. Rh6 {[%clk 0:02:11]}  Kc5 {[%clk 0:02:01]} 42. Rxg6 {[%clk 0:02:07]}  fxg6 {[%clk 0:02:02]} 43. Ke3 {[%clk 0:02:06]}  Nf7 {[%clk 0:02:02]} 44. Kf4 {[%clk 0:01:49]}  Kd4 {[%clk 0:02:00]} 45. Bc2 {[%clk 0:01:51]}  Ne5 {[%clk 0:02:02]} 46. a3 {[%clk 0:01:27]}  Nd3+ {[%clk 0:02:01]} 47. Kf3 {[%clk 0:01:28]}  Ne1+ {[%clk 0:02:02]} 0-1


[Site "Internet"]

[Event "Chessable Masters - Torneo preliminare"]
[White "Talibov, Shiroghlan"]
[Black "Salem, A.R. Saleh"]
[WhiteFideId "13429078"]
[BlackFideId "9301348"]
[WhiteElo "2247"]
[BlackElo "2654"]
[Result "0-1"]
[Round "1"]
[TimeControl "600+2"]
[Date "2023.03.13"]
[WhiteClock "0:02:48"]
[BlackClock "0:00:08"]

1. e4 {[%clk 0:10:00]}  e5 {[%clk 0:09:36]} 2. Nf3 {[%clk 0:09:59]}  Nc6 {[%clk 0:09:36]} 3. Bb5 {[%clk 0:09:57]}  a6 {[%clk 0:09:23]} 4. Ba4 {[%clk 0:09:58]}  Nf6 {[%clk 0:09:24]} 5. Nc3 {[%clk 0:09:54]}  Be7 {[%clk 0:08:18]} 6. O-O {[%clk 0:09:49]}  b5 {[%clk 0:07:12]} 7. Bb3 {[%clk 0:09:49]}  d6 {[%clk 0:07:09]} 8. a4 {[%clk 0:09:12]}  b4 {[%clk 0:07:08]} 9. Nd5 {[%clk 0:09:12]}  Na5 {[%clk 0:06:53]} 10. Ba2 {[%clk 0:08:41]}  c5 {[%clk 0:05:46]} 11. d3 {[%clk 0:08:24]}  b3 {[%clk 0:05:29]} 12. Nxf6+ {[%clk 0:08:20]}  Bxf6 {[%clk 0:05:25]} 13. Bxb3 {[%clk 0:08:22]}  Nxb3 {[%clk 0:05:26]} 14. cxb3 {[%clk 0:08:23]}  O-O {[%clk 0:05:22]} 15. Be3 {[%clk 0:08:24]}  Be6 {[%clk 0:05:13]} 16. Nd2 {[%clk 0:08:23]}  Rb8 {[%clk 0:05:12]} 17. Rc1 {[%clk 0:08:21]}  Rb7 {[%clk 0:05:08]} 18. Rc3 {[%clk 0:08:17]}  g6 {[%clk 0:05:05]} 19. Nc4 {[%clk 0:08:07]}  Bg7 {[%clk 0:05:04]} 20. Qd2 {[%clk 0:07:57]}  Qb8 {[%clk 0:04:53]} 21. Na5 {[%clk 0:06:48]}  Rc7 {[%clk 0:04:54]} 22. Bh6 {[%clk 0:06:41]}  f5 {[%clk 0:03:44]} 23. Bxg7 {[%clk 0:06:35]}  Rxg7 {[%clk 0:03:45]} 24. Rcc1 {[%clk 0:05:39]}  Bxb3 {[%clk 0:03:00]} 25. Qc3 {[%clk 0:05:34]}  Be6 {[%clk 0:02:54]} 26. Rb1 {[%clk 0:05:34]}  f4 {[%clk 0:01:57]} 27. b4 {[%clk 0:05:26]}  f3 {[%clk 0:01:15]} 28. g3 {[%clk 0:05:12]}  Qc8 {[%clk 0:01:07]} 29. Nc4 {[%clk 0:04:59]}  Bxc4 {[%clk 0:00:59]} 30. Qxc4+ {[%clk 0:05:01]}  Kh8 {[%clk 0:01:00]} 31. Kh1 {[%clk 0:04:59]}  g5 {[%clk 0:00:54]} 32. g4 {[%clk 0:05:00]}  cxb4 {[%clk 0:00:39]} 33. Qxb4 {[%clk 0:04:23]}  Qxg4 {[%clk 0:00:39]} 34. Rg1 {[%clk 0:04:25]}  Qd7 {[%clk 0:00:33]} 35. d4 {[%clk 0:04:21]}  Re8 {[%clk 0:00:25]} 36. dxe5 {[%clk 0:04:17]}  dxe5 {[%clk 0:00:25]} 37. Rbd1 {[%clk 0:04:16]}  Qa7 {[%clk 0:00:24]} 38. Qa5 {[%clk 0:03:45]}  h6 {[%clk 0:00:16]} 39. Rd2 {[%clk 0:03:37]}  Qf7 {[%clk 0:00:12]} 40. Qxa6 {[%clk 0:03:29]}  Rg6 {[%clk 0:00:08]} 41. Rd6 {[%clk 0:03:28]}  Rxd6 {[%clk 0:00:08]} 42. Qxd6 {[%clk 0:03:30]}  Kg7 {[%clk 0:00:04]} 43. Rc1 {[%clk 0:03:29]}  Re6 {[%clk 0:00:04]} 44. Qd5 {[%clk 0:03:22]}  Re7 {[%clk 0:00:04]} 45. Qc5 {[%clk 0:03:01]}  Qe6 {[%clk 0:00:06]} 46. a5 {[%clk 0:02:59]}  Rd7 {[%clk 0:00:07]} 47. Qe3 {[%clk 0:02:54]}  Qg4 {[%clk 0:00:08]} 48. Rg1 {[%clk 0:02:48]}  Qxg1+ {[%clk 0:00:08]} 0-1


[Site "Internet"]

[Event "Chessable Masters - Torneo preliminare"]
[White "Fedoseev, Vladimir"]
[Black "Nigmatov, Ortik"]
[WhiteFideId "24130737"]
[BlackFideId "14202131"]
[WhiteElo "2752"]
[BlackElo "2344"]
[Result "1-0"]
[Round "1"]
[TimeControl "600+2"]
[Date "2023.03.13"]
[WhiteClock "0:06:12"]
[BlackClock "0:00:06"]

1. e4 {[%clk 0:09:59]}  e5 {[%clk 0:09:48]} 2. Nf3 {[%clk 0:09:59]}  Nc6 {[%clk 0:09:46]} 3. Bb5 {[%clk 0:09:59]}  a6 {[%clk 0:09:41]} 4. Ba4 {[%clk 0:10:00]}  Nf6 {[%clk 0:09:41]} 5. O-O {[%clk 0:10:01]}  b5 {[%clk 0:09:41]} 6. Bb3 {[%clk 0:10:01]}  Bc5 {[%clk 0:09:42]} 7. a4 {[%clk 0:09:59]}  Bb7 {[%clk 0:09:11]} 8. d3 {[%clk 0:09:53]}  d6 {[%clk 0:09:04]} 9. Nc3 {[%clk 0:09:28]}  b4 {[%clk 0:08:36]} 10. Ne2 {[%clk 0:09:13]}  Na5 {[%clk 0:08:33]} 11. Ba2 {[%clk 0:09:12]}  b3 {[%clk 0:08:08]} 12. cxb3 {[%clk 0:08:23]}  Nc6 {[%clk 0:08:05]} 13. Ng3 {[%clk 0:08:16]}  Bc8 {[%clk 0:07:46]} 14. Be3 {[%clk 0:07:55]}  Bxe3 {[%clk 0:07:39]} 15. fxe3 {[%clk 0:07:56]}  O-O {[%clk 0:07:34]} 16. Rc1 {[%clk 0:07:48]}  Nb4 {[%clk 0:07:32]} 17. Bb1 {[%clk 0:07:48]}  c5 {[%clk 0:05:03]} 18. h3 {[%clk 0:07:39]}  Re8 {[%clk 0:04:53]} 19. d4 {[%clk 0:07:33]}  cxd4 {[%clk 0:04:40]} 20. exd4 {[%clk 0:07:34]}  Qb6 {[%clk 0:04:41]} 21. Kh2 {[%clk 0:07:29]}  Bb7 {[%clk 0:04:34]} 22. d5 {[%clk 0:07:12]}  Nd7 {[%clk 0:03:23]} 23. Nd2 {[%clk 0:07:08]}  Rac8 {[%clk 0:01:34]} 24. Nc4 {[%clk 0:07:08]}  Rxc4 {[%clk 0:01:25]} 25. bxc4 {[%clk 0:06:56]}  Nf8 {[%clk 0:01:04]} 26. Qd2 {[%clk 0:06:46]}  a5 {[%clk 0:00:59]} 27. c5 {[%clk 0:06:38]}  dxc5 {[%clk 0:01:00]} 28. Qf2 {[%clk 0:06:39]}  Qg6 {[%clk 0:00:16]} 29. Qxc5 {[%clk 0:06:36]}  Ba6 {[%clk 0:00:16]} 30. Rfe1 {[%clk 0:06:13]}  h5 {[%clk 0:00:11]} 31. Qxa5 {[%clk 0:06:10]}  h4 {[%clk 0:00:06]} 32. Nf5 {[%clk 0:06:12]} 1-0


[Site "Internet"]

[Event "Chessable Masters - Torneo preliminare"]
[White "Preotu, Razvan"]
[Black "Praggnanandhaa, R"]
[WhiteFideId "2613280"]
[BlackFideId "25059530"]
[WhiteElo "2532"]
[BlackElo "2587"]
[Result "0-1"]
[Round "1"]
[TimeControl "600+2"]
[Date "2023.03.13"]
[WhiteClock "0:00:06"]
[BlackClock "0:02:23"]

1. e4 {[%clk 0:10:01]}  e5 {[%clk 0:09:56]} 2. Nf3 {[%clk 0:10:02]}  Nc6 {[%clk 0:09:57]} 3. Bc4 {[%clk 0:10:04]}  Bc5 {[%clk 0:09:57]} 4. c3 {[%clk 0:10:03]}  Nf6 {[%clk 0:09:58]} 5. d3 {[%clk 0:10:04]}  d6 {[%clk 0:09:58]} 6. O-O {[%clk 0:10:04]}  a6 {[%clk 0:09:58]} 7. a4 {[%clk 0:10:04]}  Ba7 {[%clk 0:09:59]} 8. Re1 {[%clk 0:10:02]}  O-O {[%clk 0:09:53]} 9. h3 {[%clk 0:10:01]}  Be6 {[%clk 0:09:48]} 10. Bxe6 {[%clk 0:10:01]}  fxe6 {[%clk 0:09:50]} 11. b4 {[%clk 0:10:02]}  Nh5 {[%clk 0:09:48]} 12. Be3 {[%clk 0:09:29]}  Nf4 {[%clk 0:09:46]} 13. Ra2 {[%clk 0:06:58]}  Qf6 {[%clk 0:09:40]} 14. Bxf4 {[%clk 0:06:59]}  Qxf4 {[%clk 0:09:40]} 15. Nbd2 {[%clk 0:06:56]}  g5 {[%clk 0:09:35]} 16. Nf1 {[%clk 0:06:50]}  g4 {[%clk 0:09:27]} 17. hxg4 {[%clk 0:06:51]}  Qxg4 {[%clk 0:09:29]} 18. b5 {[%clk 0:06:38]}  Ne7 {[%clk 0:09:23]} 19. d4 {[%clk 0:06:34]}  Qg7 {[%clk 0:08:51]} 20. Re3 {[%clk 0:04:58]}  Ng6 {[%clk 0:08:38]} 21. Ng5 {[%clk 0:04:06]}  exd4 {[%clk 0:07:09]} 22. cxd4 {[%clk 0:03:47]}  Qe7 {[%clk 0:06:11]} 23. Rg3 {[%clk 0:03:43]}  axb5 {[%clk 0:05:58]} 24. axb5 {[%clk 0:03:44]}  Bxd4 {[%clk 0:05:52]} 25. Rc2 {[%clk 0:02:28]}  Be5 {[%clk 0:05:42]} 26. Qh5 {[%clk 0:01:25]}  Bxg3 {[%clk 0:05:09]} 27. Nxg3 {[%clk 0:01:26]}  Ra1+ {[%clk 0:05:09]} 28. Kh2 {[%clk 0:01:27]}  Nf4 {[%clk 0:05:06]} 29. Qg4 {[%clk 0:01:25]}  Qg7 {[%clk 0:05:02]} 30. Rxc7 {[%clk 0:01:22]}  Qh6+ {[%clk 0:04:53]} 31. Nh3+ {[%clk 0:01:17]}  Kh8 {[%clk 0:04:47]} 32. Qg5 {[%clk 0:00:35]}  Qxg5 {[%clk 0:03:54]} 33. Nxg5 {[%clk 0:00:36]}  Rf6 {[%clk 0:03:40]} 34. Rxh7+ {[%clk 0:00:18]}  Kg8 {[%clk 0:03:40]} 35. Rxb7 {[%clk 0:00:20]}  Rh6+ {[%clk 0:03:34]} 36. Nh3 {[%clk 0:00:22]}  Nxh3 {[%clk 0:03:23]} 37. gxh3 {[%clk 0:00:23]}  Rf6 {[%clk 0:03:25]} 38. Kg2 {[%clk 0:00:23]}  Ra2 {[%clk 0:03:25]} 39. Nh1 {[%clk 0:00:23]}  Rb2 {[%clk 0:03:23]} 40. b6 {[%clk 0:00:23]}  e5 {[%clk 0:03:16]} 41. h4 {[%clk 0:00:13]}  Rf4 {[%clk 0:03:09]} 42. Ng3 {[%clk 0:00:14]}  Rfxf2+ {[%clk 0:02:47]} 43. Kh3 {[%clk 0:00:15]}  Rb3 {[%clk 0:02:48]} 44. Kg4 {[%clk 0:00:05]}  Rf4+ {[%clk 0:02:48]} 45. Kh5 {[%clk 0:00:06]}  Rxg3 {[%clk 0:02:46]} 46. Rc7 {[%clk 0:00:07]}  Rg7 {[%clk 0:02:23]} 47. b7 {[%clk 0:00:06]}  Rf8 {[%clk 0:02:23]} 0-1


[Site "Internet"]

[Event "Chessable Masters - Torneo preliminare"]
[White "Bortnyk, Olexandr"]
[Black "Aditya, Mittal"]
[WhiteFideId "14120828"]
[BlackFideId "35042025"]
[WhiteElo "2643"]
[BlackElo "2386"]
[Result "0-1"]
[Round "1"]
[TimeControl "600+2"]
[Date "2023.03.13"]
[WhiteClock "0:00:02"]
[BlackClock "0:01:10"]

1. e4 {[%clk 0:09:58]}  e5 {[%clk 0:10:00]} 2. Nf3 {[%clk 0:09:58]}  Nc6 {[%clk 0:10:02]} 3. Bb5 {[%clk 0:09:58]}  Nf6 {[%clk 0:10:04]} 4. Nc3 {[%clk 0:09:51]}  Nd4 {[%clk 0:10:03]} 5. Ba4 {[%clk 0:09:51]}  c6 {[%clk 0:09:06]} 6. d3 {[%clk 0:09:32]}  b5 {[%clk 0:08:34]} 7. Bb3 {[%clk 0:09:33]}  Nxb3 {[%clk 0:08:35]} 8. axb3 {[%clk 0:09:35]}  d6 {[%clk 0:08:32]} 9. h3 {[%clk 0:09:31]}  Be7 {[%clk 0:08:33]} 10. O-O {[%clk 0:09:19]}  O-O {[%clk 0:08:34]} 11. Re1 {[%clk 0:09:17]}  Re8 {[%clk 0:08:22]} 12. Bg5 {[%clk 0:08:18]}  a5 {[%clk 0:08:14]} 13. d4 {[%clk 0:07:41]}  Qc7 {[%clk 0:07:45]} 14. Qd3 {[%clk 0:06:02]}  Bb7 {[%clk 0:07:16]} 15. Rad1 {[%clk 0:05:49]}  Rad8 {[%clk 0:06:57]} 16. dxe5 {[%clk 0:05:31]}  dxe5 {[%clk 0:06:56]} 17. Qe3 {[%clk 0:05:32]}  h6 {[%clk 0:06:07]} 18. Bh4 {[%clk 0:05:17]}  Nd7 {[%clk 0:05:24]} 19. Bxe7 {[%clk 0:05:13]}  Rxe7 {[%clk 0:05:26]} 20. Rd3 {[%clk 0:05:02]}  Nf8 {[%clk 0:05:10]} 21. Rxd8 {[%clk 0:04:52]}  Qxd8 {[%clk 0:05:12]} 22. Rd1 {[%clk 0:04:53]}  Qc7 {[%clk 0:05:13]} 23. Qc5 {[%clk 0:04:47]}  f6 {[%clk 0:04:54]} 24. Qa7 {[%clk 0:03:59]}  Ne6 {[%clk 0:04:19]} 25. Ra1 {[%clk 0:03:57]}  b4 {[%clk 0:04:19]} 26. Ne2 {[%clk 0:03:50]}  c5 {[%clk 0:04:18]} 27. Ng3 {[%clk 0:03:45]}  Re8 {[%clk 0:04:08]} 28. Qxa5 {[%clk 0:02:57]}  Ra8 {[%clk 0:04:08]} 29. Qxa8+ {[%clk 0:02:57]}  Bxa8 {[%clk 0:04:10]} 30. Rxa8+ {[%clk 0:02:58]}  Kh7 {[%clk 0:04:12]} 31. h4 {[%clk 0:02:49]}  Nd4 {[%clk 0:04:12]} 32. h5 {[%clk 0:02:48]}  Qb7 {[%clk 0:03:46]} 33. Rf8 {[%clk 0:02:47]}  Ne6 {[%clk 0:03:18]} 34. Re8 {[%clk 0:02:47]}  Qf7 {[%clk 0:03:09]} 35. Rc8 {[%clk 0:02:43]}  Qd7 {[%clk 0:03:08]} 36. Ra8 {[%clk 0:02:44]}  Qd1+ {[%clk 0:02:55]} 37. Kh2 {[%clk 0:02:45]}  Nf4 {[%clk 0:02:57]} 38. Ra7 {[%clk 0:01:54]}  Qxc2 {[%clk 0:02:54]} 39. Nh4 {[%clk 0:01:52]}  Qxf2 {[%clk 0:02:48]} 40. Rc7 {[%clk 0:01:48]}  Nxh5 {[%clk 0:02:37]} 41. Nhf5 {[%clk 0:00:58]}  Qf4 {[%clk 0:02:33]} 42. Kh3 {[%clk 0:00:46]}  Nxg3 {[%clk 0:02:00]} 43. Rxg7+ {[%clk 0:00:40]}  Kh8 {[%clk 0:02:01]} 44. Rxg3 {[%clk 0:00:41]}  Qxe4 {[%clk 0:01:42]} 45. Rf3 {[%clk 0:00:27]}  h5 {[%clk 0:01:39]} 46. Nd6 {[%clk 0:00:15]}  Qd4 {[%clk 0:01:33]} 47. Nc4 {[%clk 0:00:07]}  Qg4+ {[%clk 0:01:33]} 48. Kh2 {[%clk 0:00:08]}  e4 {[%clk 0:01:27]} 49. Rh3 {[%clk 0:00:09]}  h4 {[%clk 0:01:23]} 50. g3 {[%clk 0:00:07]}  Kg7 {[%clk 0:01:09]} 51. Rxh4 {[%clk 0:00:08]}  Qe2+ {[%clk 0:01:11]} 52. Kg1 {[%clk 0:00:09]}  e3 {[%clk 0:01:09]} 53. Rf4 {[%clk 0:00:02]}  Qd1+ {[%clk 0:01:10]} 54. Kg2 {[%clk 0:00:02]}  e2 {[%clk 0:01:10]} 0-1


[Site "Internet"]

[Event "Chessable Masters - Torneo preliminare"]
[White "Harikrishna, Pentala"]
[Black "Sadhwani, Raunak"]
[WhiteFideId "5007003"]
[BlackFideId "35093487"]
[WhiteElo "2627"]
[BlackElo "2550"]
[Result "0-1"]
[Round "1"]
[TimeControl "600+2"]
[Date "2023.03.13"]
[WhiteClock "0:00:04"]
[BlackClock "0:00:18"]

1. Nf3 {[%clk 0:09:35]}  d5 {[%clk 0:09:51]} 2. g3 {[%clk 0:09:36]}  Nc6 {[%clk 0:09:50]} 3. d4 {[%clk 0:09:34]}  Bf5 {[%clk 0:09:52]} 4. Bg2 {[%clk 0:09:10]}  Nb4 {[%clk 0:09:53]} 5. Na3 {[%clk 0:08:56]}  e6 {[%clk 0:09:54]} 6. O-O {[%clk 0:08:56]}  Be7 {[%clk 0:09:54]} 7. Ne1 {[%clk 0:08:05]}  Nf6 {[%clk 0:09:39]} 8. c3 {[%clk 0:08:02]}  Nc6 {[%clk 0:09:35]} 9. Nac2 {[%clk 0:07:54]}  h6 {[%clk 0:09:07]} 10. Nd3 {[%clk 0:07:31]}  O-O {[%clk 0:09:06]} 11. Re1 {[%clk 0:07:22]}  Bh7 {[%clk 0:07:46]} 12. b3 {[%clk 0:07:17]}  a5 {[%clk 0:06:59]} 13. a4 {[%clk 0:07:14]}  Bd6 {[%clk 0:06:02]} 14. Na3 {[%clk 0:06:43]}  e5 {[%clk 0:05:25]} 15. dxe5 {[%clk 0:05:23]}  Bxe5 {[%clk 0:05:27]} 16. Nb5 {[%clk 0:05:08]}  Re8 {[%clk 0:05:19]} 17. Bb2 {[%clk 0:04:36]}  Ne4 {[%clk 0:05:04]} 18. Nxe5 {[%clk 0:03:26]}  Nxe5 {[%clk 0:05:06]} 19. f3 {[%clk 0:03:23]}  Nf6 {[%clk 0:04:46]} 20. c4 {[%clk 0:02:52]}  c6 {[%clk 0:04:40]} 21. Na3 {[%clk 0:02:53]}  Qe7 {[%clk 0:03:14]} 22. cxd5 {[%clk 0:02:49]}  Nxd5 {[%clk 0:03:08]} 23. Qd4 {[%clk 0:02:28]}  f6 {[%clk 0:03:05]} 24. f4 {[%clk 0:01:54]}  Nf7 {[%clk 0:02:43]} 25. e4 {[%clk 0:01:37]}  Nb4 {[%clk 0:02:45]} 26. Re2 {[%clk 0:01:18]}  Rad8 {[%clk 0:02:29]} 27. Qb6 {[%clk 0:01:16]}  Nd3 {[%clk 0:02:18]} 28. Bc3 {[%clk 0:01:15]}  Qc5+ {[%clk 0:02:02]} 29. Qxc5 {[%clk 0:01:15]}  Nxc5 {[%clk 0:02:04]} 30. Bxa5 {[%clk 0:01:12]}  Rd3 {[%clk 0:01:30]} 31. Bb6 {[%clk 0:01:13]}  Nxe4 {[%clk 0:00:58]} 32. b4 {[%clk 0:00:49]}  Nfd6 {[%clk 0:00:58]} 33. b5 {[%clk 0:00:26]}  c5 {[%clk 0:00:35]} 34. a5 {[%clk 0:00:13]}  Ra8 {[%clk 0:00:12]} 35. Bc7 {[%clk 0:00:08]}  Rc8 {[%clk 0:00:06]} 36. b6 {[%clk 0:00:09]}  Kf7 {[%clk 0:00:05]} 37. a6 {[%clk 0:00:09]}  bxa6 {[%clk 0:00:05]} 38. Bxe4 {[%clk 0:00:10]}  Bxe4 {[%clk 0:00:05]} 39. Bxd6 {[%clk 0:00:09]}  Bd5 {[%clk 0:00:06]} 40. Re7+ {[%clk 0:00:09]}  Kg6 {[%clk 0:00:08]} 41. b7 {[%clk 0:00:10]}  Bxb7 {[%clk 0:00:09]} 42. Rxb7 {[%clk 0:00:12]}  Rxd6 {[%clk 0:00:11]} 43. Nc4 {[%clk 0:00:14]}  Rd4 {[%clk 0:00:12]} 44. Ne3 {[%clk 0:00:14]}  Re8 {[%clk 0:00:13]} 45. Ra3 {[%clk 0:00:14]}  Rd2 {[%clk 0:00:14]} 46. f5+ {[%clk 0:00:14]}  Kh7 {[%clk 0:00:15]} 47. h4 {[%clk 0:00:07]}  c4 {[%clk 0:00:15]} 48. Rc3 {[%clk 0:00:08]}  h5 {[%clk 0:00:15]} 49. Kf1 {[%clk 0:00:09]}  Re5 {[%clk 0:00:12]} 50. Nxc4 {[%clk 0:00:06]}  Rxf5+ {[%clk 0:00:13]} 51. Ke1 {[%clk 0:00:07]}  Rg2 {[%clk 0:00:12]} 52. Nd2 {[%clk 0:00:04]}  Re5+ {[%clk 0:00:12]} 53. Kd1 {[%clk 0:00:05]}  Rd5 {[%clk 0:00:13]} 54. Rb2 {[%clk 0:00:06]}  a5 {[%clk 0:00:14]} 55. Kc1 {[%clk 0:00:07]}  Rg1+ {[%clk 0:00:15]} 56. Kc2 {[%clk 0:00:08]}  Rg2 {[%clk 0:00:17]} 57. Kc1 {[%clk 0:00:08]}  Rg1+ {[%clk 0:00:17]} 58. Kc2 {[%clk 0:00:10]}  a4 {[%clk 0:00:11]} 59. Ne4 {[%clk 0:00:08]}  Rg2+ {[%clk 0:00:13]} 60. Kb1 {[%clk 0:00:09]}  Rg1+ {[%clk 0:00:14]} 61. Ka2 {[%clk 0:00:10]}  Rd4 {[%clk 0:00:15]} 62. Nc5 {[%clk 0:00:07]}  Rg4 {[%clk 0:00:16]} 63. Nxa4 {[%clk 0:00:05]}  Rxa4+ {[%clk 0:00:16]} 64. Kb3 {[%clk 0:00:04]}  Rg4 {[%clk 0:00:18]} 0-1


[Site "Internet"]